[Event "Fagernes Chess Open 2025"]
[Site "Fagernes"]
[Date "2025.04.18"]
[Round "7.15"]
[White "Dybvik, Bjorn Noralf"]
[Black "Ruud, Mikael"]
[Result "1/2-1/2"]
[Annotator "NA RC"]
[ECO "C54"]
[WhiteElo "1686"]
[BlackElo "1588"]
[PlyCount "50"]
[EventDate "2025.04.12"]
[EventCountry "NOR"]
[SourceTitle "playchess.com"]
[Source "ChessBase"]
[SourceQuality "1"]
[TimeControl "40/6000+30:2400+30"]

1. e4 {[%emt 0:00:11]} e5 {[%emt 0:00:18]} 2. Nf3 {[%emt 0:00:12]} Nc6 {[%emt 0:00:05]} 3. Bc4 {[%emt 0:00:17]} Bc5 {[%emt 0:00:17]} 4. c3 {[%emt 0:00:45]} Nf6 {[%emt 0:00:07]} 5. d3 {[%emt 0:02:49]} h6 {[%emt 0:00:21]} 6. b4 {[%emt 0:02:22]} Bb6 {[%emt 0:00:48]} 7. b5 {[%emt 0:02:27]} Na5 {[%emt 0:00:56]} 8. Nxe5 {[%emt 0:01:37]} Nxc4 {[%emt 0:00:47]} 9. Nxc4 {[%emt 0:00:55]} d5 {[%emt 0:03:02]} 10. Nxb6 {[%emt 0:02:57]} axb6 {[%emt 0:01:20]} 11. e5 {[%emt 0:02:52]} Ng4 {[%emt 0:01:23]} 12. Qe2 {[%emt 0:05:13]} O-O {[%emt 0:01:39]} 13. O-O {[%emt 0:02:47]} Re8 {[%emt 0:02:08]} 14. d4 {[%emt 0:01:59]} Qh4 {[%emt 0:05:41]} 15. Bf4 {[%emt 0:07:21]} Nxe5 {[%emt 0:03:49]} 16. Bg3 {[%emt 0:06:09]} Qg4 {[%emt 0:04:51]} 17. f3 {[%emt 0:01:52]} Nxf3+ {[%emt 0:00:22]} 18. Qxf3 {[%emt 0:00:40]} Qxf3 {[%emt 0:01:49]} 19. Rxf3 {[%emt 0:01:39]} Re2 {[%emt 0:00:31]} 20. a3 {[%emt 0:02:32]} Bd7 {[%emt 0:00:21]} 21. Bxc7 {[%emt 0:02:57]} Bxb5 {[%emt 0:02:23]} 22. Bxb6 {[%emt 0:02:38]} Re1+ {[%emt 0:00:07]} 23. Kf2 {[%emt 0:00:51]} Re2+ {[%emt 0:00:43]} 24. Kg3 {[%emt 0:00:45]} Ra6 {[%emt 0:00:12]} 25. Rf2 {[%emt 0:13:31]} Rxb6 {[%emt 0:02:10]} 1/2-1/2

[Event "Fagernes Chess Open 2025"]
[Site "Fagernes"]
[Date "2025.04.18"]
[Round "7.16"]
[White "Vatneodegard, Marie"]
[Black "Smedsrud, Morten S"]
[Result "1-0"]
[Annotator "NA"]
[ECO "C42"]
[WhiteElo "1538"]
[BlackElo "1699"]
[PlyCount "65"]
[EventDate "2025.04.12"]
[EventCountry "NOR"]
[SourceTitle "playchess.com"]
[Source "ChessBase"]
[SourceQuality "1"]
[TimeControl "40/6000+30:2400+30"]

1. e4 {[%emt 0:00:04]} e5 {[%emt 0:00:22]} 2. Nf3 {[%emt 0:00:16]} Nf6 {[%emt 0:00:06]} 3. Nxe5 {[%emt 0:00:59]} Nxe4 {[%emt 0:00:39]} 4. Qe2 {[%emt 0:00:28]} Qe7 {[%emt 0:00:17]} 5. Qxe4 {[%emt 0:01:50]} d6 {[%emt 0:00:34]} 6. d4 {[%emt 0:03:52]} dxe5 {[%emt 0:00:29]} 7. dxe5 {[%emt 0:01:22]} Nc6 {[%emt 0:00:19]} 8. Bb5 {[%emt 0:11:54]} Bd7 {[%emt 0:07:45]} 9. O-O {[%emt 0:03:12]} a6 {[%emt 0:20:11]} 10. Ba4 {[%emt 0:02:42]} f5 {[%emt 0:17:31]} 11. Qf4 {[%emt 0:13:16]} O-O-O {[%emt 0:13:52]} 12. Bxc6 {[%emt 0:06:05]} Bxc6 {[%emt 0:02:10]} 13. Qxf5+ {[%emt 0:00:53]} Bd7 {[%emt 0:06:08]} 14. Qf4 {[%emt 0:08:42]} Be6 {[%emt 0:02:29]} 15. Nc3 {[%emt 0:00:45]} Rg8 {[%emt 0:06:42]} 16. Be3 {[%emt 0:07:02]} g5 {[%emt 0:09:24]} 17. Qe4 {[%emt 0:14:04]} Qf7 {[%emt 0:04:29]} 18. Rfd1 {[%emt 0:05:32]} Be7 {[%emt 0:01:22]} 19. Rxd8+ {[%emt 0:01:42]} Rxd8 {[%emt 0:00:39]} 20. h3 {[%emt 0:03:00]} h5 {[%emt 0:02:44]} 21. Ne2 {[%emt 0:03:21]} Bd5 {[%emt 0:03:13]} 22. Qa4 {[%emt 0:02:35]} Bc6 {[%emt 0:00:54]} 23. Qa5 {[%emt 0:01:12]} Rd5 {[%emt 0:02:30]} 24. Qc3 {[%emt 0:00:57]} Rb5 {[%emt 0:03:48]} 25. Rd1 {[%emt 0:02:11]} Qxa2 {[%emt 0:00:37]} 26. e6 {[%emt 0:01:08]} Qxb2 {[%emt 0:00:17]} 27. Qd3 {[%emt 0:06:03]} Rd5 {[%emt 0:01:26]} 28. Nd4 {[%emt 0:00:34]} a5 {[%emt 0:02:27]} 29. Qg6 {[%emt 0:01:14]} Qb4 {[%emt 0:00:53]} 30. Qg8+ {[%emt 0:01:55]} Rd8 {[%emt 0:00:13]} 31. Qf7 {[%emt 0:01:46]} h4 {[%emt 0:00:33]} 32. Rc1 {[%emt 0:01:25]} Qd6 {[%emt 0:00:26]} 33. Nf5 {[%emt 0:01:45]} 1-0

[Event "Fagernes Chess Open 2025"]
[Site "Fagernes"]
[Date "2025.04.18"]
[Round "7.17"]
[White "Warstad, Leif E"]
[Black "Bollestad, Leiv Ove"]
[Result "0-1"]
[Annotator "NA RC"]
[ECO "A05"]
[WhiteElo "1606"]
[BlackElo "1585"]
[PlyCount "76"]
[EventDate "2025.04.12"]
[EventCountry "NOR"]
[SourceTitle "playchess.com"]
[Source "ChessBase"]
[SourceQuality "1"]
[TimeControl "40/6000+30:2400+30"]

1. Nf3 {[%emt 0:00:06]} b6 {[%emt 0:00:22]} 2. g3 {[%emt 0:00:33]} Bb7 {[%emt 0:00:08]} 3. Bg2 {[%emt 0:00:05]} Nf6 {[%emt 0:00:17]} 4. d3 {[%emt 0:02:24]} g6 {[%emt 0:01:21]} 5. Nc3 {[%emt 0:01:06]} Bg7 {[%emt 0:00:12]} 6. e4 {[%emt 0:02:59]} d6 {[%emt 0:01:33]} 7. Bd2 {[%emt 0:04:26]} Nbd7 {[%emt 0:02:10]} 8. O-O {[%emt 0:00:59]} e5 {[%emt 0:03:37]} 9. a4 {[%emt 0:04:47]} O-O {[%emt 0:02:25]} 10. Qc1 {[%emt 0:03:42]} Re8 {[%emt 0:06:49]} 11. Bg5 {[%emt 0:08:07]} Nf8 {[%emt 0:05:54]} 12. Nd5 {[%emt 0:13:59]} Ne6 {[%emt 0:00:50]} 13. Nxf6+ {[%emt 0:03:11]} Bxf6 {[%emt 0:00:12]} 14. Bxf6 {[%emt 0:00:05]} Qxf6 {[%emt 0:00:09]} 15. c3 {[%emt 0:00:49]} Nc5 {[%emt 0:05:23]} 16. Qc2 {[%emt 0:03:14]} d5 {[%emt 0:01:11]} 17. exd5 {[%emt 0:03:57]} Bxd5 {[%emt 0:01:58]} 18. Nd2 {[%emt 0:03:36]} Rad8 {[%emt 0:03:17]} 19. Ne4 {[%emt 0:06:13]} Qc6 {[%emt 0:04:02]} 20. c4 {[%emt 0:02:23]} Nxe4 {[%emt 0:00:57]} 21. Bxe4 {[%emt 0:00:55]} Bxe4 {[%emt 0:02:01]} 22. dxe4 {[%emt 0:00:08]} Rd4 {[%emt 0:00:16]} 23. b3 {[%emt 0:01:45]} Qxe4 {[%emt 0:00:29]} 24. Qxe4 {[%emt 0:04:43]} Rxe4 {[%emt 0:00:09]} 25. Rad1 {[%emt 0:04:07]} Rd4 {[%emt 0:00:24]} 26. Rfe1 {[%emt 0:06:14]} Rxd1 {[%emt 0:01:52]} 27. Rxd1 {[%emt 0:00:09]} Re7 {[%emt 0:00:26]} 28. Kf1 {[%emt 0:00:15]} f5 {[%emt 0:00:16]} 29. Ke2 {[%emt 0:00:23]} Kf7 {[%emt 0:00:12]} 30. h4 {[%emt 0:05:06]} Ke6 {[%emt 0:03:42]} 31. Ke3 {[%emt 0:04:48]} a5 {[%emt 0:05:28]} 32. f3 {[%emt 0:02:54]} Rd7 {[%emt 0:03:28]} 33. Rxd7 {[%emt 0:07:54]} Kxd7 {[%emt 0:00:09]} 34. g4 {[%emt 0:00:10]} h6 {[%emt 0:02:37]} 35. f4 {[%emt 0:04:39]} fxg4 {[%emt 0:02:27]} 36. fxe5 {[%emt 0:00:09]} Ke6 {[%emt 0:00:55]} 37. Kf4 {[%emt 0:00:54]} h5 {[%emt 0:00:49]} 38. Kg3 {[%emt 0:00:04]} Kxe5 0-1

[Event "Fagernes Chess Open 2025"]
[Site "Fagernes"]
[Date "2025.04.18"]
[Round "7.18"]
[White "Jullum, Hege Ibsen"]
[Black "Nebell, Anne Grete"]
[Result "1/2-1/2"]
[Annotator "NA RC"]
[ECO "D04"]
[WhiteElo "1484"]
[BlackElo "1561"]
[PlyCount "45"]
[EventDate "2025.04.12"]
[EventCountry "NOR"]
[SourceTitle "playchess.com"]
[Source "ChessBase"]
[SourceQuality "1"]
[TimeControl "40/6000+30:2400+30"]

1. d4 {[%emt 0:00:03]} d5 {[%emt 0:00:07]} 2. Nf3 {[%emt 0:00:06]} Nf6 {[%emt 0:00:04]} 3. e3 {[%emt 0:00:05]} c5 {[%emt 0:00:09]} 4. b3 {[%emt 0:00:19]} cxd4 {[%emt 0:00:31]} 5. exd4 {[%emt 0:00:35]} Nc6 {[%emt 0:00:41]} 6. Bb2 {[%emt 0:01:16]} Bf5 {[%emt 0:00:52]} 7. Be2 {[%emt 0:01:46]} e6 {[%emt 0:00:24]} 8. O-O {[%emt 0:00:38]} Bd6 {[%emt 0:01:36]} 9. Nbd2 {[%emt 0:01:53]} O-O {[%emt 0:00:50]} 10. Ne5 {[%emt 0:01:08]} Rc8 {[%emt 0:05:55]} 11. c4 {[%emt 0:03:40]} Nd7 {[%emt 0:05:17]} 12. Ndf3 {[%emt 0:05:39]} Ndxe5 {[%emt 0:03:47]} 13. dxe5 {[%emt 0:02:36]} Be7 {[%emt 0:02:36]} 14. cxd5 {[%emt 0:03:50]} exd5 {[%emt 0:01:24]} 15. Nd4 {[%emt 0:01:17]} Nxd4 {[%emt 0:01:01]} 16. Bxd4 {[%emt 0:01:26]} Bc5 {[%emt 0:02:39]} 17. Bxc5 {[%emt 0:06:29]} Rxc5 {[%emt 0:00:10]} 18. Bd3 {[%emt 0:02:08]} Bxd3 {[%emt 0:04:46]} 19. Qxd3 {[%emt 0:01:13]} d4 {[%emt 0:00:14]} 20. Rac1 {[%emt 0:00:34]} Rxe5 {[%emt 0:00:59]} 21. Rc4 {[%emt 0:01:29]} Qb6 {[%emt 0:02:22]} 22. Qxd4 {[%emt 0:01:24]} Qxd4 {[%emt 0:02:09]} 23. Rxd4 {[%emt 0:00:42]} 1/2-1/2

[Event "Fagernes Chess Open 2025"]
[Site "Fagernes"]
[Date "2025.04.18"]
[Round "7.19"]
[White "Skotheim, Havard"]
[Black "Johansson, Henrik"]
[Result "1-0"]
[Annotator "NA"]
[ECO "B01"]
[WhiteElo "1548"]
[BlackElo "1730"]
[PlyCount "57"]
[EventDate "2025.04.12"]
[EventCountry "NOR"]
[SourceTitle "playchess.com"]
[Source "ChessBase"]
[SourceQuality "1"]
[TimeControl "40/6000+30:2400+30"]

1. e4 {[%emt 0:00:04]} d5 {[%emt 0:00:45]} 2. Nf3 {[%emt 0:00:21]} dxe4 {[%emt 0:01:14]} 3. Ng5 {[%emt 0:00:16]} Nf6 {[%emt 0:01:39]} 4. d3 {[%emt 0:00:34]} exd3 {[%emt 0:02:45]} 5. Bxd3 {[%emt 0:00:33]} e6 {[%emt 0:04:38]} 6. O-O {[%emt 0:00:59]} Be7 {[%emt 0:04:16]} 7. Nc3 {[%emt 0:08:04]} Nc6 {[%emt 0:02:36]} 8. Re1 {[%emt 0:06:25]} O-O {[%emt 0:13:01]} 9. h4 {[%emt 0:03:11]} g6 {[%emt 0:10:32]} 10. Be3 {[%emt 0:14:19]} Nd5 {[%emt 0:06:24]} 11. Nxd5 {[%emt 0:04:04]} exd5 {[%emt 0:03:45]} 12. c3 {[%emt 0:04:54]} Ne5 {[%emt 0:06:29]} 13. Bd4 {[%emt 0:04:39]} Nxd3 {[%emt 0:03:49]} 14. Qxd3 {[%emt 0:03:42]} Bxg5 {[%emt 0:00:59]} 15. hxg5 {[%emt 0:00:39]} Qxg5 {[%emt 0:00:31]} 16. Re5 {[%emt 0:03:14]} Bf5 {[%emt 0:04:02]} 17. Qe2 {[%emt 0:05:35]} c6 {[%emt 0:04:54]} 18. f3 {[%emt 0:13:56]} h5 {[%emt 0:03:22]} 19. Re1 {[%emt 0:00:52]} h4 {[%emt 0:05:39]} 20. Re7 {[%emt 0:05:35]} Qg3 {[%emt 0:06:00]} 21. Qe3 {[%emt 0:07:29]} h3 {[%emt 0:05:00]} 22. Re2 {[%emt 0:00:43]} g5 {[%emt 0:06:35]} 23. Be5 {[%emt 0:08:47]} Qh4 {[%emt 0:04:18]} 24. g3 {[%emt 0:00:37]} Qh6 {[%emt 0:00:58]} 25. Rxb7 {[%emt 0:05:10]} f6 {[%emt 0:03:33]} 26. Bd4 {[%emt 0:01:35]} Qh5 {[%emt 0:03:25]} 27. g4 {[%emt 0:02:59]} Bxg4 {[%emt 0:00:58]} 28. fxg4 {[%emt 0:00:09]} Qxg4+ {[%emt 0:00:30]} 29. Kh2 {[%emt 0:00:14]} 1-0